{"text_format":"1","workbook":"xlsx","n_sheets":1,"sheets":["E5009-外匯活期存款取款憑條"],"not_rendered":{"charts":0,"images":0,"macros":0,"external_links":0,"defined_names":1,"comments":1,"pivot_tables":0},"unopened":[],"bounds":{"document_bytes":16777216,"sheet_cells":100000,"rows_first":2000,"rows_last":500,"rows_between":2000,"halvings":0,"cell_chars":16384,"cell_head_chars":4096},"cells_cut":0,"cells_raw":0,"read":"whole","date_system":"1900"}

{"sheet":"E5009-外匯活期存款取款憑條","index":0,"n_rows":39,"n_cols":39,"rows_kept":39,"cut":false,"hidden":false,"merged":[[5,1,5,6],[5,8,5,14],[15,6,15,8],[13,9,14,11],[13,12,14,14],[37,8,37,14],[26,1,29,1],[34,2,34,10],[34,11,34,14],[3,1,3,6],[3,8,3,14],[11,32,12,34],[10,22,11,28],[13,19,14,19],[19,27,19,28],[13,20,14,20],[18,27,18,32],[10,2,11,3],[13,15,14,15],[1,1,1,6],[1,8,1,14],[31,4,32,11],[31,2,32,3],[15,2,16,2],[13,22,13,29],[15,3,15,5],[27,2,27,3],[31,20,32,20],[13,17,14,18],[14,22,14,29],[29,18,29,24],[29,25,29,29],[29,11,29,17],[18,20,18,26],[19,21,19,22],[15,9,15,15],[27,13,27,16],[10,33,10,34],[16,34,24,34],[10,8,11,20],[21,22,21,29],[23,22,23,32],[13,16,14,16],[19,23,19,25],[11,30,12,31],[15,17,16,18],[20,22,20,32],[35,2,35,34],[16,35,24,35],[18,2,24,2],[27,4,27,6],[29,30,29,31],[27,7,27,9],[27,21,27,25],[19,31,19,33],[27,10,27,12],[27,31,27,32],[31,28,32,28],[31,24,32,24],[27,17,27,19],[27,27,27,30],[29,2,29,10]]}
[]
[null,"金額幣別名稱"]
[]
[null,"金額換算大寫"]
[]
[null,"取款日期"]
[]
[]
[null,null,"☐","傳真指示扣帳 (請勾選。僅限與本行簽訂電話傳真交易授權書者適用)",null,null,null,null,null,null,null,null,null,null,null,null,null,null,null,null,null,null,null,null,null,null,null,null,null,null,null,null,null,null,null,null,null,null,{"$f":"IF(AND(I6=\"\",I6=0),FALSE,I6)","v":false}]
[]
[null,null,"外\n活",null,null,null,null,null,"日 商 瑞 穗 銀 行",null,null,null,null,null,null,null,null,null,null,null,null,null,"外匯活期存款取款憑條",null,null,null,null,null,null,null,null,null,null,"借",null,null,null,"☐"]
[null,null,null,null,null,null,null,null,null,null,null,null,null,null,null,null,null,null,null,null,null,null,null,null,null,null,null,null,null,null,"會計\n科目",null,"外匯存款\n(普通預金)\n202806",null,null,null,null,"☑"]
[null,null,null,null,null,null,null,null,null,null,null,null,null,null,null,null,null,null,null,null,null,null,null,null,null,null,null,null,null,null,null,null,null,null,null,null,0,"零"]
[null,null,null,null,null,null,null,null,null,"西元",null,null,{"$f":"IF(AM9=FALSE,\"\",YEAR(AM9))","v":""},null,null,"年",{"$f":"IF(AM9=FALSE,\"\",MONTH(AM9))","v":""},"月",null,{"$f":"IF(AM9=FALSE,\"\",DAY(AM9))","v":""},"日",null,"［金額漢字範例］壹、貳、參、肆、伍、",null,null,null,null,null,null,null,null,null,null,null,null,null,1,"壹"]
[null,null,null,null,null,null,null,null,null,null,null,null,null,null,null,null,null,null,null,null,null,null,"　陸、柒、捌、玖、拾、佰、仟、萬、元正",null,null,null,null,null,null,null,null,null,null,null,null,null,2,"貳"]
[null,null,"帳\n\n號","分行別",null,null,"科目別",null,null,"編   號",null,null,null,null,null,null,"檢","金\n\n額",null,null,"仟億","佰億","拾億","億","仟","佰","拾","萬","仟","佰","拾","元","角","分",null,null,3,"參"]
[null,null,null,null,null,null,0,0,1,null,null,null,null,null,null,null,null,null,null,{"$f":"IF($I$2=0,\"\",UPPER($I$2))","v":""},{"$f":"VLOOKUP($U$39,$AK$13:$AL$22,2,FALSE)","v":"零"},{"$f":"VLOOKUP($V$39,$AK$13:$AL$22,2,FALSE)","v":"零"},{"$f":"VLOOKUP($W$39,$AK$13:$AL$22,2,FALSE)","v":"零"},{"$f":"VLOOKUP($X$39,$AK$13:$AL$22,2,FALSE)","v":"零"},{"$f":"VLOOKUP($Y$39,$AK$13:$AL$22,2,FALSE)","v":"零"},{"$f":"VLOOKUP($Z$39,$AK$13:$AL$22,2,FALSE)","v":"零"},{"$f":"VLOOKUP($AA$39,$AK$13:$AL$22,2,FALSE)","v":"零"},{"$f":"VLOOKUP($AB$39,$AK$13:$AL$22,2,FALSE)","v":"零"},{"$f":"VLOOKUP($AC$39,$AK$13:$AL$22,2,FALSE)","v":"零"},{"$f":"VLOOKUP($AD$39,$AK$13:$AL$22,2,FALSE)","v":"零"},{"$f":"VLOOKUP($AE$39,$AK$13:$AL$22,2,FALSE)","v":"零"},{"$f":"VLOOKUP($AF$39,$AK$13:$AL$22,2,FALSE)","v":"零"},{"$f":"VLOOKUP($AG$39,$AK$13:$AL$22,2,FALSE)","v":"零"},{"$f":"VLOOKUP($AH$39,$AK$13:$AL$22,2,FALSE)","v":"零"},"︵\n粗\n線\n欄\n內\n各\n項\n請\n顧\n客\n自\n行\n填\n寫\n︶",null,4,"肆"]
[null,null,null,null,null,null,null,null,null,null,null,null,null,null,null,null,null,null,null,null,null,null,null,null,null,null,null,null,null,null,null,null,null,null,null,null,5,"伍"]
[null,null,"存\n\n戶\n\n簽\n\n章",null,null,null,null,null,null,null,null,null,null,null,null,null,null,null,"一","、","以本日匯率兌換新臺幣(交易性質:",null,null,null,null,null,null,null,null,null,null,null,null,")",null,null,6,"陸"]
[null,null,null,null,null,null,null,null,null,null,null,null,null,null,null,null,null,null,null,null,"☐","全額請匯",null,null,null,null,"銀行",null,null,"分行","帳號",null,null,null,null,null,7,"柒"]
[null,null,null,null,null,null,null,null,null,null,null,null,null,null,null,null,null,null,null,null,null,"存戶",null,null,null,null,null,null,null,null,null,null,null,null,null,null,8,"捌"]
[null,null,null,null,null,null,null,null,null,null,null,null,null,null,null,null,null,null,null,null,"☐","請開",null,null,null,null,null,null,null,null,"銀行付款之支票",null,null,null,null,null,9,"玖"]
[]
[null,null,null,null,null,null,null,null,null,null,null,null,null,null,null,null,null,null,"二","、","☐","其他"]
[]
[]
[null,"電\n\n腦\n\n印\n\n証\n\n欄"]
[null,null,"分行別",null,"分行序號",null,null,"中心序號",null,null,"交易代號",null,null,"交　易　日",null,null,null,"時　間",null,null,"課別","帳　　　　　號",null,null,null,null,"課別","對　方　帳　號",null,null,null,"摘要",null,"管"]
[]
[null,null,"交　　易　　金　　額",null,null,null,null,null,null,null,null,"最 高 可 提 款 額",null,null,null,null,null,null,"有　　效　　餘　　額",null,null,null,null,null,null,"可　抵　用　限　額",null,null,null,null,"起 算 日",null,null,"注"]
[]
[null,null,"相對\n科目",null,null,null,null,null,null,null,null,null,null,null,null,null,null,null,null,null,"主\n管",null,null,null,"經\n辦",null,null,null,"核\n章"]
[]
[]
[null,null,"(E5009) Electronic Application",null,null,null,null,null,null,null,null,20220401]
[null,null,"Note : 使用此申請書時，本人/本公司同意不更動除填記欄位以外之申請書內容及文字，若更動該申請書內容或文字而造成 貴行損失時願負一切責任。"]
[]
[null,null,null,null,null,null,null,null,{"$f":"ROUNDDOWN($I$4,2)","v":0},null,null,null,null,null,null,null,null,null,null,null,{"$f":"IF($I$38>=100000000000,MID(RIGHTB($I$38*100,14),1,1),0)","v":0},{"$f":"IF($I$38>=10000000000,MID(RIGHTB($I$38*100,13),1,1),0)","v":0},{"$f":"IF($I$38>=1000000000,MID(RIGHTB($I$38*100,12),1,1),0)","v":0},{"$f":"IF($I$38>=100000000,MID(RIGHTB($I$38*100,11),1,1),0)","v":0},{"$f":"IF($I$38>=10000000,MID(RIGHTB($I$38*100,10),1,1),0)","v":0},{"$f":"IF($I$38>=1000000,MID(RIGHTB($I$38*100,9),1,1),0)","v":0},{"$f":"IF($I$38>=100000,MID(RIGHTB($I$38*100,8),1,1),0)","v":0},{"$f":"IF($I$38>=10000,MID(RIGHTB($I$38*100,7),1,1),0)","v":0},{"$f":"IF($I$38>=1000,MID(RIGHTB($I$38*100,6),1,1),0)","v":0},{"$f":"IF($I$38>=100,MID(RIGHTB($I$38*100,5),1,1),0)","v":0},{"$f":"IF($I$38>=10,MID(RIGHTB($I$38*100,4),1,1),0)","v":0},{"$f":"IF($I$38>=1,MID(RIGHTB($I$38*100,3),1,1),0)","v":0},{"$f":"IF($I$38>=0.1,MID(RIGHTB($I$38*100,2),1,1),0)","v":0},{"$f":"IF($I$38>=0.01,RIGHTB($I$38*100,1),0)","v":0}]
[null,null,null,null,null,null,null,null,null,null,null,null,null,null,null,null,null,null,null,null,{"$f":"INT(U38)","v":0},0,0,0,0,0,0,0,0,0,0,0,0,0]